Workbook

Sheet Instructions (hidden)
B1: Macros must be enabled for APR to calculate correctly

Sheet ClosingDisclosure
A1: Closing Disclosure | G1: This form is a statement of final loan terms and closing costs. Compare this document with your Loan Estimate.
A3: Closing Information | E3: Transaction Information | I3: Loan Information
A4: Date Issued | E4: Borrower | I4: Loan Term | J4: 360
A5: Closing Date | I5: Purpose | J5: Purchase
A6: Disbursement Date | I6: Product | J6: 7 Years Negative Amortization, Fixed Rate
A7: Settlement Agent | E7: Seller | I7: Loan Type | J7: Conventional
A8: File# | I8: Loan #
A9: Property
E10: Lender
A11: Sales Price
A13: Loan Terms | F13: Can this amount increase after closing?
A14: Loan Amount | D14: 50000 | F14: NO
A15: Interest Rate | D15: 0.035 | F15: NO
A16: Monthly Principal & Interest | D16: 0 | F16: YES
A17: See Projected Payments below for your Estimated Total Monthly Payment
F18: Does this loan have these features?
A19: Prepayment Penalty | F19: NO
A20: Balloon Payment | F20: NO
A22: Payments
A23: Payment Calculation | D23: Years 1-7 | H23: Years 8-30
A24: Principal & Interest | D24: 0 | H24: =PI23YearAm -> 328.6865855
A25: Mortgage Insurance | D25: 0 | H25: 0
A26: Escrow (Covered in 1st Mtg.) | D26: 0 | H26: 0
A27: Estimated Total Monthly Payment | D27: =D24 -> 0 | H27: =SUM(H24:J26) -> 328.6865855
A29: Costs at Closing | D29: See below for details
A30: Closing Costs | D30: =TotalClosingCosts -> 339
A31: Cash to Close | D31: See first mortgage Closing Disclosure
A33: Lender | G33: Loan Officer
A34: NMLS/License ID | G34: NMLS/License ID
A35: Email | G35: Phone
A38: Closing Cost Details | G38: Use this table to see a summary of your transactions
A39: Loan Costs | G39: Loan Credits
A40: A. Origination Charges | D40: =D41+D42+D43 -> 40 | G40: E.Paid on behalf of Borrower at Closing | K40: =SUM(K41:L43) -> 0
A41: Program Application Fee | D41: 40 | G41: 2nd Mortgage Loan Amount | K41: =E5 -> 0
G42: Lender Credit/Cure
A45: B. Services | D45: =D46+D47+D48+D49 -> 200 | G45: Summaries of Transactions
A46: Settlement or Closing Fee | D46: 200 | G46: F.Net amount transferred to 1st CD | K46: =SUM(Loan_Amount-TotalClosingCosts+PaidOnBehalf) -> 49661
G47: Total Closing Costs (D) | K47: =D58 -> 0
G48: Paid on Behalf of Borrower (E) | K48: =PaidOnBehalf -> 0
G49: Loan Amount | K49: =Loan_Amount -> 50000
A51: C. Other Costs | D51: =D52+D53+D54 -> 99 | G51: Calculation
A52: Recording Fees | D52: 99 | G52: Total Due from Borrower at Closing | K52: See 1st CD
G53: G. Cash To/From Borrower | K53: See 1st CD
A57: D.Total Closing Costs | D57: =SUM(OriginationCharges+Services+OtherCosts) -> 339
A58: Subtotals A+B+C
A61: Calculating Cash to Close | F61: Use this table to see what has changed from your Loan Estimate
C62: Loan Estimate | D62: Final | E62: Did this change? | G62: Reason
A63: Total Closing Costs (D) | D63: =TotalClosingCosts -> 339
A64: Credit(s) (E) | D64: =PaidOnBehalf -> 0
A65: Transfer to 1st (F) | D65: =NetAmountXfer -> 49661
A68: Loan Calculations
A69: Total of Payments. Total you will have paid after you make all payments of principal, interest and loan costs, as scheduled. | D69: =Loan_Amount+TotalInterest -> 90717.49759
A70: Finance Charge. The dollar amount the loan will cost you. | D70: =TotalInterest+APRFees -> 40957.49759
A71: Amount Financed. The loan amount available after paying your upfront finance charge. | D71: =Loan_Amount-APRFees -> 49760
A72: Annual Percentage Rate (APR). Your costs over the loan term expressed as a rate. This is not your interest rate. | D72: =APR_annualized -> 0.03378218245
A73: Total Interest Percentage(TIP) | D73: =TotalInterest/Loan_Amount -> 0.8143499519
A75: Other Considerations
A76: Assumption | D76: If you sell or transfer this property to another person, we will not allow assumptions of this loan on the original terms.
A77: Demand Feature | D77: Your loan does not have a demand feature.
A78: Homeowner's Insurance | D78: This loan requires homeowner's insurance on the property, which you may obtain from a company of your choice that we find acceptable.
A79: Late Payments | D79: There is no Late Payment Fee associated with this mortgage.
A80: Negative Amortization (Increase in Loan Amount) | D80: Under your loan terms, you will have payments deferred for the first seven years. As a result, you’re your loan amount will increase (negatively amortize), and your loan amount likely become larger than your original loan amount. Increases in your loan amount lower the equity you have in this property.
A81: Partial Payments | D81: Prior to amortization of the loan (year 8), payments would go towards any accumulated interest, and if funds from the payment remain, then the principal. From year 8 on, your lender may hold them in a separate account until you pay the rest of the payment, and then apply the full payment to your account.
A82: Security Interest | D82: You are granting a security interest in:
D83: =IF(PropAdd1="","",PropAdd1) -> 
D84: =IF(PropAdd2="","",PropAdd2) -> 
A85: Servicing | D85: We intend to transfer the servicing of your loan.
A87: Deferred Payment | D87: Payments on the loan are deferred for the first 7 years, afterwards the loan will amortize to payoff in the remaining 23 years.
A90: Questions? If you have questions about the loan terms or costs on this form, use the contact information below. To get more information or make a complaint, contact the Consumer Financial Protection Bureau at:
A96: www.consumerfinance.gov/mortgage-closing
A98: Contact Information
D99: Lender | F99: Real Estate Broker(B) | H99: Real Estate Broker(S) | J99: Settlement Agent
A100: Name
A101: Address
A102: NMLS ID
A103: ST License ID
A104: Contact
A105: Contact NMLS ID
A106: Contact ST License ID
A107: Email
A108: Phone
A110: Other Disclosures
A112: Appraisal | D112: If the property was appraised for your loan, your lender is required to give you a copy at no additional cost at least 3 days before closing. If you have not yet received it, please contact your lender at the information listed below
A113: Contract Details | D113: See your note and security instrument for information about what happens if you fail to make your payments, what is a default on the loan, situations in which your lender can require early repayment of the loan, and the rules for making payments before they are due.
A114: Liability after Foreclosure | D114: If your lender forecloses on this property and the foreclosure does not cover the amount of unpaid balance on this loan, state law does not protect you from liability for the unpaid balance.
A115: Refinance | D115: Refinancing this loan will depend on your future financial situation, the property value, and market conditions. You may not be able to refinance this loan.
A116: Tax Deductions | D116: If you borrow more than this property is worth, the interest on the loan amount above this property’s fair market value is not deductible from your federal income taxes. You should consult a tax advisor for more information.
A119: Acknowledgement
A120: I/we understand that my/our home purchase is assisted by a downpayment loan from the Washington State Housing Finance Commission (Commission) in partnership with the University of Washington. I/we understand that the Commission will require the loan to be repaid in full if:
A124: * the home is no longer my/our principal residence
A125: * the home is sold or transferred
A126: * if the first mortgage is paid off or refinanced
A127: * or if I am no I am no longer employed by the University of Washington
A129: I/we further understand that, in the event the Commission requires repayment prior to the maturity date, I/we will be required to pay the accrued interest as well as the outstanding principal balance on the loan.
A131: Confirm Receipt
A132: By signing, you are only confirming you have received this form. You do not have to accept this loan because you have signed or received this form.
A137: Applicant Signature | D137: Date | G137: Co-Applicant Signature | J137: Date

Sheet Calculations (hidden)
A1: Term of Deferrement | C1: 84 | D1: Months
A2: Original L/A | B2: Interest After Deferred Term | C2: Start Am Balance | D2: Remaining Term | E2: Ppay | F2: Ipay
A3: =Loan_Amount -> 50000 | B3: =SUM(DefMonths/12*Interest_Rate*Loan_Amount) -> 12250 | C3: =SUM(Loan_Amount+Interest_After_Deferred_Term) -> 62250 | D3: =SUM(Loan_Term-DefMonths) -> 276 | E3: =PPMT(Interest_Rate/12,1,D3,C3) -> -147.1240855 | F3: =IPMT(Interest_Rate/12,1,Loan_Term-D3,C3) -> -181.5625 | G3: =SUM(E3:F3)*-1 -> 328.6865855
A5: APR Related Fees | B5: =SUM(TotalClosingCosts-RecordingFees) -> 240

Sheet DefAmSched (hidden)
A1: Term of Deferrement | C1: 84 | D1: Months
A5: Month | B5: Payment | C5: Interest | D5: Prinicpal | E5: Balance | F5: Total Interest Life of Loan | G5: Present Value of Payents
A6: 0 | B6: 0 | D6: 0 | E6: =Loan_Amount -> 50000 | F6: =SUM(tblDefAmort[Interest]) -> 40717.49759 | G6: =-(Calculations!A3-APRFees) -> -49760 | I6: APR Guess | J6: 0.002815181871 | L6: Amount FIN | M6: =40000-299 -> 39701
A7: 1 | B7: 0 | C7: =SUM($E$6*Interest_Rate/12) -> 145.8333333 | D7: 0 | E7: =SUM(E6+C7) -> 50145.83333
A8: 2 | B8: 0 | C8: 145.8333333 | D8: 0 | E8: =SUM(E7+C8) -> 50291.66667 | I8: APR annualized | J8: =J6*12 -> 0.03378218245
A9: 3 | B9: 0 | C9: 145.8333333 | D9: 0 | E9: 50437.5
A10: 4 | B10: 0 | C10: 145.8333333 | D10: 0 | E10: 50583.33333
A11: 5 | B11: 0 | C11: 145.8333333 | D11: 0 | E11: 50729.16667
A12: 6 | B12: 0 | C12: 145.8333333 | D12: 0 | E12: 50875 | I12: PV of annuity method | J12: =((B91/(1+J6)^85)*(1-1/(1+J6)^276))/(1-1/(1+J6)) -> 49759.99992
A13: 7 | B13: 0 | C13: 145.8333333 | D13: 0 | E13: 51020.83333
A14: 8 | B14: 0 | C14: 145.8333333 | D14: 0 | E14: 51166.66667
A15: 9 | B15: 0 | C15: 145.8333333 | D15: 0 | E15: 51312.5
A16: 10 | B16: 0 | C16: 145.8333333 | D16: 0 | E16: 51458.33333
A17: 11 | B17: 0 | C17: 145.8333333 | D17: 0 | E17: 51604.16667
A18: 12 | B18: 0 | C18: 145.8333333 | D18: 0 | E18: 51750
A19: 13 | B19: 0 | C19: 145.8333333 | D19: 0 | E19: 51895.83333
A20: 14 | B20: 0 | C20: 145.8333333 | D20: 0 | E20: 52041.66667
A21: 15 | B21: 0 | C21: 145.8333333 | D21: 0 | E21: 52187.5
A22: 16 | B22: 0 | C22: 145.8333333 | D22: 0 | E22: 52333.33333
A23: 17 | B23: 0 | C23: 145.8333333 | D23: 0 | E23: 52479.16667
A24: 18 | B24: 0 | C24: 145.8333333 | D24: 0 | E24: 52625
A25: 19 | B25: 0 | C25: 145.8333333 | D25: 0 | E25: 52770.83333
A26: 20 | B26: 0 | C26: 145.8333333 | D26: 0 | E26: 52916.66667
A27: 21 | B27: 0 | C27: 145.8333333 | D27: 0 | E27: 53062.5
A28: 22 | B28: 0 | C28: 145.8333333 | D28: 0 | E28: 53208.33333
A29: 23 | B29: 0 | C29: 145.8333333 | D29: 0 | E29: 53354.16667
A30: 24 | B30: 0 | C30: 145.8333333 | D30: 0 | E30: 53500
A31: 25 | B31: 0 | C31: 145.8333333 | D31: 0 | E31: 53645.83333
A32: 26 | B32: 0 | C32: 145.8333333 | D32: 0 | E32: 53791.66667
A33: 27 | B33: 0 | C33: 145.8333333 | D33: 0 | E33: 53937.5
A34: 28 | B34: 0 | C34: 145.8333333 | D34: 0 | E34: 54083.33333
A35: 29 | B35: 0 | C35: 145.8333333 | D35: 0 | E35: 54229.16667
A36: 30 | B36: 0 | C36: 145.8333333 | D36: 0 | E36: 54375
A37: 31 | B37: 0 | C37: 145.8333333 | D37: 0 | E37: 54520.83333
A38: 32 | B38: 0 | C38: 145.8333333 | D38: 0 | E38: 54666.66667
A39: 33 | B39: 0 | C39: =SUM($E$6*Interest_Rate/12) -> 145.8333333 | D39: 0 | E39: 54812.5
A40: 34 | B40: 0 | C40: 145.8333333 | D40: 0 | E40: 54958.33333
A41: 35 | B41: 0 | C41: 145.8333333 | D41: 0 | E41: 55104.16667
A42: 36 | B42: 0 | C42: 145.8333333 | D42: 0 | E42: 55250
A43: 37 | B43: 0 | C43: 145.8333333 | D43: 0 | E43: 55395.83333
A44: 38 | B44: 0 | C44: 145.8333333 | D44: 0 | E44: 55541.66667
A45: 39 | B45: 0 | C45: 145.8333333 | D45: 0 | E45: 55687.5
A46: 40 | B46: 0 | C46: 145.8333333 | D46: 0 | E46: 55833.33333
A47: 41 | B47: 0 | C47: 145.8333333 | D47: 0 | E47: 55979.16667
A48: 42 | B48: 0 | C48: 145.8333333 | D48: 0 | E48: 56125
A49: 43 | B49: 0 | C49: 145.8333333 | D49: 0 | E49: 56270.83333
A50: 44 | B50: 0 | C50: 145.8333333 | D50: 0 | E50: 56416.66667
A51: 45 | B51: 0 | C51: 145.8333333 | D51: 0 | E51: 56562.5
A52: 46 | B52: 0 | C52: 145.8333333 | D52: 0 | E52: 56708.33333
A53: 47 | B53: 0 | C53: 145.8333333 | D53: 0 | E53: 56854.16667
A54: 48 | B54: 0 | C54: 145.8333333 | D54: 0 | E54: 57000
A55: 49 | B55: 0 | C55: 145.8333333 | D55: 0 | E55: 57145.83333
A56: 50 | B56: 0 | C56: 145.8333333 | D56: 0 | E56: 57291.66667
A57: 51 | B57: 0 | C57: 145.8333333 | D57: 0 | E57: 57437.5
A58: 52 | B58: 0 | C58: 145.8333333 | D58: 0 | E58: 57583.33333
A59: 53 | B59: 0 | C59: 145.8333333 | D59: 0 | E59: 57729.16667
A60: 54 | B60: 0 | C60: 145.8333333 | D60: 0 | E60: 57875
A61: 55 | B61: 0 | C61: 145.8333333 | D61: 0 | E61: 58020.83333
A62: 56 | B62: 0 | C62: 145.8333333 | D62: 0 | E62: 58166.66667
A63: 57 | B63: 0 | C63: 145.8333333 | D63: 0 | E63: 58312.5
A64: 58 | B64: 0 | C64: 145.8333333 | D64: 0 | E64: 58458.33333
A65: 59 | B65: 0 | C65: 145.8333333 | D65: 0 | E65: 58604.16667
A66: 60 | B66: 0 | C66: 145.8333333 | D66: 0 | E66: 58750
A67: 61 | B67: 0 | C67: 145.8333333 | D67: 0 | E67: 58895.83333
A68: 62 | B68: 0 | C68: 145.8333333 | D68: 0 | E68: 59041.66667
A69: 63 | B69: 0 | C69: 145.8333333 | D69: 0 | E69: 59187.5
A70: 64 | B70: 0 | C70: 145.8333333 | D70: 0 | E70: 59333.33333
A71: 65 | B71: 0 | C71: =SUM($E$6*Interest_Rate/12) -> 145.8333333 | D71: 0 | E71: 59479.16667
A72: 66 | B72: 0 | C72: 145.8333333 | D72: 0 | E72: =SUM(E71+C72) -> 59625
A73: 67 | B73: 0 | C73: 145.8333333 | D73: 0 | E73: 59770.83333
A74: 68 | B74: 0 | C74: 145.8333333 | D74: 0 | E74: 59916.66667
A75: 69 | B75: 0 | C75: 145.8333333 | D75: 0 | E75: 60062.5
A76: 70 | B76: 0 | C76: 145.8333333 | D76: 0 | E76: 60208.33333
A77: 71 | B77: 0 | C77: 145.8333333 | D77: 0 | E77: 60354.16667
A78: 72 | B78: 0 | C78: 145.8333333 | D78: 0 | E78: 60500
A79: 73 | B79: 0 | C79: 145.8333333 | D79: 0 | E79: 60645.83333
A80: 74 | B80: 0 | C80: 145.8333333 | D80: 0 | E80: 60791.66667
A81: 75 | B81: 0 | C81: 145.8333333 | D81: 0 | E81: 60937.5
A82: 76 | B82: 0 | C82: 145.8333333 | D82: 0 | E82: 61083.33333
A83: 77 | B83: 0 | C83: 145.8333333 | D83: 0 | E83: 61229.16667
A84: 78 | B84: 0 | C84: 145.8333333 | D84: 0 | E84: 61375
A85: 79 | B85: 0 | C85: 145.8333333 | D85: 0 | E85: 61520.83333
A86: 80 | B86: 0 | C86: 145.8333333 | D86: 0 | E86: 61666.66667
A87: 81 | B87: 0 | C87: 145.8333333 | D87: 0 | E87: 61812.5
A88: 82 | B88: 0 | C88: 145.8333333 | D88: 0 | E88: 61958.33333
A89: 83 | B89: 0 | C89: 145.8333333 | D89: 0 | E89: 62104.16667
A90: 84 | B90: 0 | C90: 145.8333333 | D90: 0 | E90: 62250
A91: 85 | B91: =-PMT(Interest_Rate/12,360-84,BalStartAm) -> 328.6865855 | C91: =SUM(E90*Interest_Rate/12) -> 181.5625 | D91: =SUM(tblDefAmort[[#This Row],[Payment]]-tblDefAmort[[#This Row],[Interest]]) -> 147.1240855 | E91: =SUM(E90-D91) -> 62102.87591 | G91: =tblDefAmort[[#This Row],[Payment]]/((1+$J$6)^tblDefAmort[[#This Row],[Month]]) -> 258.8245457
A92: 86 | B92: 328.6865855 | C92: 181.1333881 | D92: =SUM(B92-C92) -> 147.5531974 | E92: =SUM(E91-D92) -> 61955.32272 | G92: =tblDefAmort[[#This Row],[Payment]]/((1+$J$6)^tblDefAmort[[#This Row],[Month]]) -> 258.097953
A93: 87 | B93: 328.6865855 | C93: 180.7030246 | D93: 147.9835609 | E93: 61807.33916 | G93: =tblDefAmort[[#This Row],[Payment]]/((1+$J$6)^tblDefAmort[[#This Row],[Month]]) -> 257.3734001
A94: 88 | B94: 328.6865855 | C94: 180.2714059 | D94: 148.4151796 | E94: 61658.92398 | G94: =tblDefAmort[[#This Row],[Payment]]/((1+$J$6)^tblDefAmort[[#This Row],[Month]]) -> 256.6508811
A95: 89 | B95: 328.6865855 | C95: 179.8385283 | D95: 148.8480572 | E95: 61510.07592 | G95: =tblDefAmort[[#This Row],[Payment]]/((1+$J$6)^tblDefAmort[[#This Row],[Month]]) -> 255.9303905
A96: 90 | B96: 328.6865855 | C96: 179.4043881 | D96: 149.2821974 | E96: 61360.79372 | G96: =tblDefAmort[[#This Row],[Payment]]/((1+$J$6)^tblDefAmort[[#This Row],[Month]]) -> 255.2119226
A97: 91 | B97: 328.6865855 | C97: 178.9689817 | D97: 149.7176038 | E97: 61211.07612 | G97: =tblDefAmort[[#This Row],[Payment]]/((1+$J$6)^tblDefAmort[[#This Row],[Month]]) -> 254.4954715
A98: 92 | B98: 328.6865855 | C98: 178.5323053 | D98: 150.1542801 | E98: 61060.92184 | G98: =tblDefAmort[[#This Row],[Payment]]/((1+$J$6)^tblDefAmort[[#This Row],[Month]]) -> 253.7810318
A99: 93 | B99: 328.6865855 | C99: 178.0943554 | D99: 150.5922301 | E99: 60910.32961 | G99: =tblDefAmort[[#This Row],[Payment]]/((1+$J$6)^tblDefAmort[[#This Row],[Month]]) -> 253.0685976
A100: 94 | B100: 328.6865855 | C100: 177.655128 | D100: 151.0314575 | E100: 60759.29815 | G100: =tblDefAmort[[#This Row],[Payment]]/((1+$J$6)^tblDefAmort[[#This Row],[Month]]) -> 252.3581635
A101: 95 | B101: 328.6865855 | C101: 177.2146196 | D101: 151.4719659 | E101: 60607.82618 | G101: =tblDefAmort[[#This Row],[Payment]]/((1+$J$6)^tblDefAmort[[#This Row],[Month]]) -> 251.6497238
A102: 96 | B102: 328.6865855 | C102: 176.7728264 | D102: 151.9137591 | E102: 60455.91243 | G102: =tblDefAmort[[#This Row],[Payment]]/((1+$J$6)^tblDefAmort[[#This Row],[Month]]) -> 250.9432728
A103: 97 | B103: 328.6865855 | C103: 176.3297446 | D103: 152.3568409 | E103: 60303.55558 | G103: =tblDefAmort[[#This Row],[Payment]]/((1+$J$6)^tblDefAmort[[#This Row],[Month]]) -> 250.2388051
A104: 98 | B104: 328.6865855 | C104: 175.8853705 | D104: 152.801215 | E104: 60150.75437 | G104: =tblDefAmort[[#This Row],[Payment]]/((1+$J$6)^tblDefAmort[[#This Row],[Month]]) -> 249.536315
A105: 99 | B105: 328.6865855 | C105: 175.4397002 | D105: 153.2468852 | E105: 59997.50748 | G105: =tblDefAmort[[#This Row],[Payment]]/((1+$J$6)^tblDefAmort[[#This Row],[Month]]) -> 248.8357969
A106: 100 | B106: 328.6865855 | C106: 174.9927302 | D106: 153.6938553 | E106: 59843.81363 | G106: =tblDefAmort[[#This Row],[Payment]]/((1+$J$6)^tblDefAmort[[#This Row],[Month]]) -> 248.1372455
A107: 101 | B107: 328.6865855 | C107: 174.5444564 | D107: 154.1421291 | E107: 59689.6715 | G107: =tblDefAmort[[#This Row],[Payment]]/((1+$J$6)^tblDefAmort[[#This Row],[Month]]) -> 247.440655
A108: 102 | B108: 328.6865855 | C108: 174.0948752 | D108: 154.5917103 | E108: 59535.07979 | G108: =tblDefAmort[[#This Row],[Payment]]/((1+$J$6)^tblDefAmort[[#This Row],[Month]]) -> 246.7460201
A109: 103 | B109: 328.6865855 | C109: 173.6439827 | D109: 155.0426028 | E109: 59380.03719 | G109: =tblDefAmort[[#This Row],[Payment]]/((1+$J$6)^tblDefAmort[[#This Row],[Month]]) -> 246.0533352
A110: 104 | B110: 328.6865855 | C110: 173.1917751 | D110: 155.4948104 | E110: 59224.54238 | G110: =tblDefAmort[[#This Row],[Payment]]/((1+$J$6)^tblDefAmort[[#This Row],[Month]]) -> 245.3625949
A111: 105 | B111: 328.6865855 | C111: 172.7382486 | D111: 155.9483369 | E111: 59068.59404 | G111: =tblDefAmort[[#This Row],[Payment]]/((1+$J$6)^tblDefAmort[[#This Row],[Month]]) -> 244.6737937
A112: 106 | B112: 328.6865855 | C112: 172.2833993 | D112: 156.4031862 | E112: 58912.19085 | G112: =tblDefAmort[[#This Row],[Payment]]/((1+$J$6)^tblDefAmort[[#This Row],[Month]]) -> 243.9869261
A113: 107 | B113: 328.6865855 | C113: 171.8272233 | D113: 156.8593622 | E113: 58755.33149 | G113: =tblDefAmort[[#This Row],[Payment]]/((1+$J$6)^tblDefAmort[[#This Row],[Month]]) -> 243.3019867
A114: 108 | B114: 328.6865855 | C114: 171.3697168 | D114: 157.3168686 | E114: 58598.01462 | G114: =tblDefAmort[[#This Row],[Payment]]/((1+$J$6)^tblDefAmort[[#This Row],[Month]]) -> 242.6189702
A115: 109 | B115: 328.6865855 | C115: 170.910876 | D115: 157.7757095 | E115: 58440.23891 | G115: =tblDefAmort[[#This Row],[Payment]]/((1+$J$6)^tblDefAmort[[#This Row],[Month]]) -> 241.9378711
A116: 110 | B116: 328.6865855 | C116: 170.4506968 | D116: 158.2358887 | E116: 58282.00302 | G116: =tblDefAmort[[#This Row],[Payment]]/((1+$J$6)^tblDefAmort[[#This Row],[Month]]) -> 241.258684
A117: 111 | B117: 328.6865855 | C117: 169.9891755 | D117: 158.69741 | E117: 58123.30561 | G117: =tblDefAmort[[#This Row],[Payment]]/((1+$J$6)^tblDefAmort[[#This Row],[Month]]) -> 240.5814036
A118: 112 | B118: 328.6865855 | C118: 169.526308 | D118: 159.1602774 | E118: 57964.14534 | G118: =tblDefAmort[[#This Row],[Payment]]/((1+$J$6)^tblDefAmort[[#This Row],[Month]]) -> 239.9060245
A119: 113 | B119: 328.6865855 | C119: 169.0620906 | D119: 159.6244949 | E119: 57804.52084 | G119: =tblDefAmort[[#This Row],[Payment]]/((1+$J$6)^tblDefAmort[[#This Row],[Month]]) -> 239.2325414
A120: 114 | B120: 328.6865855 | C120: 168.5965191 | D120: 160.0900664 | E120: 57644.43078 | G120: =tblDefAmort[[#This Row],[Payment]]/((1+$J$6)^tblDefAmort[[#This Row],[Month]]) -> 238.560949
A121: 115 | B121: 328.6865855 | C121: 168.1295898 | D121: 160.5569957 | E121: 57483.87378 | G121: =tblDefAmort[[#This Row],[Payment]]/((1+$J$6)^tblDefAmort[[#This Row],[Month]]) -> 237.8912419
A122: 116 | B122: 328.6865855 | C122: 167.6612985 | D122: 161.025287 | E122: 57322.84849 | G122: =tblDefAmort[[#This Row],[Payment]]/((1+$J$6)^tblDefAmort[[#This Row],[Month]]) -> 237.2234148
A123: 117 | B123: 328.6865855 | C123: 167.1916414 | D123: 161.494944 | E123: 57161.35355 | G123: =tblDefAmort[[#This Row],[Payment]]/((1+$J$6)^tblDefAmort[[#This Row],[Month]]) -> 236.5574625
A124: 118 | B124: 328.6865855 | C124: 166.7206145 | D124: 161.965971 | E124: 56999.38758 | G124: =tblDefAmort[[#This Row],[Payment]]/((1+$J$6)^tblDefAmort[[#This Row],[Month]]) -> 235.8933798
A125: 119 | B125: 328.6865855 | C125: 166.2482138 | D125: 162.4383717 | E125: 56836.94921 | G125: =tblDefAmort[[#This Row],[Payment]]/((1+$J$6)^tblDefAmort[[#This Row],[Month]]) -> 235.2311612
A126: 120 | B126: 328.6865855 | C126: 165.7744352 | D126: 162.9121503 | E126: 56674.03706 | G126: =tblDefAmort[[#This Row],[Payment]]/((1+$J$6)^tblDefAmort[[#This Row],[Month]]) -> 234.5708018
A127: 121 | B127: 328.6865855 | C127: 165.2992747 | D127: 163.3873107 | E127: 56510.64975 | G127: =tblDefAmort[[#This Row],[Payment]]/((1+$J$6)^tblDefAmort[[#This Row],[Month]]) -> 233.9122961
A128: 122 | B128: 328.6865855 | C128: 164.8227284 | D128: 163.8638571 | E128: 56346.78589 | G128: =tblDefAmort[[#This Row],[Payment]]/((1+$J$6)^tblDefAmort[[#This Row],[Month]]) -> 233.2556391
A129: 123 | B129: 328.6865855 | C129: 164.3447922 | D129: 164.3417933 | E129: 56182.4441 | G129: =tblDefAmort[[#This Row],[Payment]]/((1+$J$6)^tblDefAmort[[#This Row],[Month]]) -> 232.6008255
A130: 124 | B130: 328.6865855 | C130: 163.8654619 | D130: 164.8211235 | E130: 56017.62297 | G130: =tblDefAmort[[#This Row],[Payment]]/((1+$J$6)^tblDefAmort[[#This Row],[Month]]) -> 231.9478501
A131: 125 | B131: 328.6865855 | C131: 163.3847337 | D131: 165.3018518 | E131: 55852.32112 | G131: =tblDefAmort[[#This Row],[Payment]]/((1+$J$6)^tblDefAmort[[#This Row],[Month]]) -> 231.2967078
A132: 126 | B132: 328.6865855 | C132: 162.9026033 | D132: 165.7839822 | E132: 55686.53714 | G132: =tblDefAmort[[#This Row],[Payment]]/((1+$J$6)^tblDefAmort[[#This Row],[Month]]) -> 230.6473934
A133: 127 | B133: 328.6865855 | C133: 162.4190667 | D133: 166.2675188 | E133: 55520.26962 | G133: =tblDefAmort[[#This Row],[Payment]]/((1+$J$6)^tblDefAmort[[#This Row],[Month]]) -> 229.9999019
A134: 128 | B134: 328.6865855 | C134: 161.9341197 | D134: 166.7524658 | E134: 55353.51715 | G134: =tblDefAmort[[#This Row],[Payment]]/((1+$J$6)^tblDefAmort[[#This Row],[Month]]) -> 229.354228
A135: 129 | B135: 328.6865855 | C135: 161.4477584 | D135: 167.2388271 | E135: 55186.27833 | G135: =tblDefAmort[[#This Row],[Payment]]/((1+$J$6)^tblDefAmort[[#This Row],[Month]]) -> 228.7103667
A136: 130 | B136: 328.6865855 | C136: 160.9599785 | D136: 167.726607 | E136: 55018.55172 | G136: =tblDefAmort[[#This Row],[Payment]]/((1+$J$6)^tblDefAmort[[#This Row],[Month]]) -> 228.0683129
A137: 131 | B137: 328.6865855 | C137: 160.4707758 | D137: 168.2158096 | E137: 54850.33591 | G137: =tblDefAmort[[#This Row],[Payment]]/((1+$J$6)^tblDefAmort[[#This Row],[Month]]) -> 227.4280616
A138: 132 | B138: 328.6865855 | C138: 159.9801464 | D138: 168.7064391 | E138: 54681.62947 | G138: =tblDefAmort[[#This Row],[Payment]]/((1+$J$6)^tblDefAmort[[#This Row],[Month]]) -> 226.7896076
A139: 133 | B139: 328.6865855 | C139: 159.488086 | D139: 169.1984995 | E139: 54512.43097 | G139: =tblDefAmort[[#This Row],[Payment]]/((1+$J$6)^tblDefAmort[[#This Row],[Month]]) -> 226.1529459
A140: 134 | B140: 328.6865855 | C140: 158.9945903 | D140: 169.6919951 | E140: 54342.73898 | G140: =tblDefAmort[[#This Row],[Payment]]/((1+$J$6)^tblDefAmort[[#This Row],[Month]]) -> 225.5180715
A141: 135 | B141: 328.6865855 | C141: 158.4996553 | D141: 170.1869301 | E141: 54172.55205 | G141: =tblDefAmort[[#This Row],[Payment]]/((1+$J$6)^tblDefAmort[[#This Row],[Month]]) -> 224.8849794
A142: 136 | B142: 328.6865855 | C142: 158.0032768 | D142: 170.6833087 | E142: 54001.86874 | G142: =tblDefAmort[[#This Row],[Payment]]/((1+$J$6)^tblDefAmort[[#This Row],[Month]]) -> 224.2536646
A143: 137 | B143: 328.6865855 | C143: 157.5054505 | D143: 171.181135 | E143: 53830.6876 | G143: =tblDefAmort[[#This Row],[Payment]]/((1+$J$6)^tblDefAmort[[#This Row],[Month]]) -> 223.624122
A144: 138 | B144: 328.6865855 | C144: 157.0061722 | D144: 171.6804133 | E144: 53659.00719 | G144: =tblDefAmort[[#This Row],[Payment]]/((1+$J$6)^tblDefAmort[[#This Row],[Month]]) -> 222.9963467
A145: 139 | B145: 328.6865855 | C145: 156.5054376 | D145: 172.1811478 | E145: 53486.82604 | G145: =tblDefAmort[[#This Row],[Payment]]/((1+$J$6)^tblDefAmort[[#This Row],[Month]]) -> 222.3703338
A146: 140 | B146: 328.6865855 | C146: 156.0032426 | D146: 172.6833429 | E146: 53314.1427 | G146: =tblDefAmort[[#This Row],[Payment]]/((1+$J$6)^tblDefAmort[[#This Row],[Month]]) -> 221.7460782
A147: 141 | B147: 328.6865855 | C147: 155.4995829 | D147: 173.1870026 | E147: 53140.95569 | G147: =tblDefAmort[[#This Row],[Payment]]/((1+$J$6)^tblDefAmort[[#This Row],[Month]]) -> 221.1235752
A148: 142 | B148: 328.6865855 | C148: 154.9944541 | D148: 173.6921314 | E148: 52967.26356 | G148: =tblDefAmort[[#This Row],[Payment]]/((1+$J$6)^tblDefAmort[[#This Row],[Month]]) -> 220.5028196
A149: 143 | B149: 328.6865855 | C149: 154.4878521 | D149: 174.1987334 | E149: 52793.06483 | G149: =tblDefAmort[[#This Row],[Payment]]/((1+$J$6)^tblDefAmort[[#This Row],[Month]]) -> 219.8838067
A150: 144 | B150: 328.6865855 | C150: 153.9797724 | D150: 174.7068131 | E150: 52618.35802 | G150: =tblDefAmort[[#This Row],[Payment]]/((1+$J$6)^tblDefAmort[[#This Row],[Month]]) -> 219.2665315
A151: 145 | B151: 328.6865855 | C151: 153.4702109 | D151: 175.2163746 | E151: 52443.14164 | G151: =tblDefAmort[[#This Row],[Payment]]/((1+$J$6)^tblDefAmort[[#This Row],[Month]]) -> 218.6509892
A152: 146 | B152: 328.6865855 | C152: 152.9591631 | D152: 175.7274224 | E152: 52267.41422 | G152: =tblDefAmort[[#This Row],[Payment]]/((1+$J$6)^tblDefAmort[[#This Row],[Month]]) -> 218.0371749
A153: 147 | B153: 328.6865855 | C153: 152.4466248 | D153: 176.2399607 | E153: 52091.17426 | G153: =tblDefAmort[[#This Row],[Payment]]/((1+$J$6)^tblDefAmort[[#This Row],[Month]]) -> 217.4250838
A154: 148 | B154: 328.6865855 | C154: 151.9325916 | D154: 176.7539939 | E154: 51914.42027 | G154: =tblDefAmort[[#This Row],[Payment]]/((1+$J$6)^tblDefAmort[[#This Row],[Month]]) -> 216.8147109
A155: 149 | B155: =-PMT(Interest_Rate/12,360-84,BalStartAm) -> 328.6865855 | C155: =SUM(E154*Interest_Rate/12) -> 151.4170591 | D155: 177.2695264 | E155: 51737.15074 | G155: =tblDefAmort[[#This Row],[Payment]]/((1+$J$6)^tblDefAmort[[#This Row],[Month]]) -> 216.2060516
A156: 150 | B156: 328.6865855 | C156: 150.900023 | D156: =SUM(B156-C156) -> 177.7865625 | E156: =SUM(E155-D156) -> 51559.36418 | G156: =tblDefAmort[[#This Row],[Payment]]/((1+$J$6)^tblDefAmort[[#This Row],[Month]]) -> 215.5991009
A157: 151 | B157: 328.6865855 | C157: 150.3814788 | D157: 178.3051066 | E157: 51381.05907 | G157: =tblDefAmort[[#This Row],[Payment]]/((1+$J$6)^tblDefAmort[[#This Row],[Month]]) -> 214.9938541
A158: 152 | B158: 328.6865855 | C158: 149.8614223 | D158: 178.8251632 | E158: 51202.23391 | G158: =tblDefAmort[[#This Row],[Payment]]/((1+$J$6)^tblDefAmort[[#This Row],[Month]]) -> 214.3903064
A159: 153 | B159: 328.6865855 | C159: 149.3398489 | D159: 179.3467366 | E159: 51022.88717 | G159: =tblDefAmort[[#This Row],[Payment]]/((1+$J$6)^tblDefAmort[[#This Row],[Month]]) -> 213.788453
A160: 154 | B160: 328.6865855 | C160: 148.8167542 | D160: 179.8698312 | E160: 50843.01734 | G160: =tblDefAmort[[#This Row],[Payment]]/((1+$J$6)^tblDefAmort[[#This Row],[Month]]) -> 213.1882892
A161: 155 | B161: 328.6865855 | C161: 148.2921339 | D161: 180.3944516 | E161: 50662.62289 | G161: =tblDefAmort[[#This Row],[Payment]]/((1+$J$6)^tblDefAmort[[#This Row],[Month]]) -> 212.5898102
A162: 156 | B162: 328.6865855 | C162: 147.7659834 | D162: 180.9206021 | E162: 50481.70229 | G162: =tblDefAmort[[#This Row],[Payment]]/((1+$J$6)^tblDefAmort[[#This Row],[Month]]) -> 211.9930114
A163: 157 | B163: 328.6865855 | C163: 147.2382983 | D163: 181.4482871 | E163: 50300.254 | G163: =tblDefAmort[[#This Row],[Payment]]/((1+$J$6)^tblDefAmort[[#This Row],[Month]]) -> 211.3978879
A164: 158 | B164: 328.6865855 | C164: 146.7090742 | D164: 181.9775113 | E164: 50118.27649 | G164: =tblDefAmort[[#This Row],[Payment]]/((1+$J$6)^tblDefAmort[[#This Row],[Month]]) -> 210.804435
A165: 159 | B165: 328.6865855 | C165: 146.1783064 | D165: 182.5082791 | E165: 49935.76821 | G165: =tblDefAmort[[#This Row],[Payment]]/((1+$J$6)^tblDefAmort[[#This Row],[Month]]) -> 210.2126482
A166: 160 | B166: 328.6865855 | C166: 145.6459906 | D166: 183.0405949 | E166: 49752.72761 | G166: =tblDefAmort[[#This Row],[Payment]]/((1+$J$6)^tblDefAmort[[#This Row],[Month]]) -> 209.6225227
A167: 161 | B167: 328.6865855 | C167: 145.1121222 | D167: 183.5744633 | E167: 49569.15315 | G167: =tblDefAmort[[#This Row],[Payment]]/((1+$J$6)^tblDefAmort[[#This Row],[Month]]) -> 209.0340538
A168: 162 | B168: 328.6865855 | C168: 144.5766967 | D168: 184.1098888 | E168: 49385.04326 | G168: =tblDefAmort[[#This Row],[Payment]]/((1+$J$6)^tblDefAmort[[#This Row],[Month]]) -> 208.4472369
A169: 163 | B169: 328.6865855 | C169: 144.0397095 | D169: 184.646876 | E169: 49200.39639 | G169: =tblDefAmort[[#This Row],[Payment]]/((1+$J$6)^tblDefAmort[[#This Row],[Month]]) -> 207.8620674
A170: 164 | B170: 328.6865855 | C170: 143.5011561 | D170: 185.1854294 | E170: 49015.21096 | G170: =tblDefAmort[[#This Row],[Payment]]/((1+$J$6)^tblDefAmort[[#This Row],[Month]]) -> 207.2785406
A171: 165 | B171: 328.6865855 | C171: 142.961032 | D171: 185.7255535 | E171: 48829.4854 | G171: =tblDefAmort[[#This Row],[Payment]]/((1+$J$6)^tblDefAmort[[#This Row],[Month]]) -> 206.6966519
A172: 166 | B172: 328.6865855 | C172: 142.4193324 | D172: 186.2672531 | E172: 48643.21815 | G172: =tblDefAmort[[#This Row],[Payment]]/((1+$J$6)^tblDefAmort[[#This Row],[Month]]) -> 206.1163968
A173: 167 | B173: 328.6865855 | C173: 141.8760529 | D173: 186.8105325 | E173: 48456.40762 | G173: =tblDefAmort[[#This Row],[Payment]]/((1+$J$6)^tblDefAmort[[#This Row],[Month]]) -> 205.5377706
A174: 168 | B174: 328.6865855 | C174: 141.3311889 | D174: 187.3553966 | E174: 48269.05222 | G174: =tblDefAmort[[#This Row],[Payment]]/((1+$J$6)^tblDefAmort[[#This Row],[Month]]) -> 204.9607687
A175: 169 | B175: 328.6865855 | C175: 140.7847356 | D175: 187.9018498 | E175: 48081.15037 | G175: =tblDefAmort[[#This Row],[Payment]]/((1+$J$6)^tblDefAmort[[#This Row],[Month]]) -> 204.3853867
A176: 170 | B176: 328.6865855 | C176: 140.2366886 | D176: 188.4498969 | E176: 47892.70047 | G176: =tblDefAmort[[#This Row],[Payment]]/((1+$J$6)^tblDefAmort[[#This Row],[Month]]) -> 203.8116199
A177: 171 | B177: 328.6865855 | C177: 139.687043 | D177: 188.9995424 | E177: 47703.70093 | G177: =tblDefAmort[[#This Row],[Payment]]/((1+$J$6)^tblDefAmort[[#This Row],[Month]]) -> 203.2394639
A178: 172 | B178: 328.6865855 | C178: 139.1357944 | D178: 189.5507911 | E178: 47514.15014 | G178: =tblDefAmort[[#This Row],[Payment]]/((1+$J$6)^tblDefAmort[[#This Row],[Month]]) -> 202.668914
A179: 173 | B179: 328.6865855 | C179: 138.5829379 | D179: 190.1036476 | E179: 47324.04649 | G179: =tblDefAmort[[#This Row],[Payment]]/((1+$J$6)^tblDefAmort[[#This Row],[Month]]) -> 202.0999659
A180: 174 | B180: 328.6865855 | C180: 138.0284689 | D180: 190.6581165 | E180: 47133.38838 | G180: =tblDefAmort[[#This Row],[Payment]]/((1+$J$6)^tblDefAmort[[#This Row],[Month]]) -> 201.5326149
A181: 175 | B181: 328.6865855 | C181: 137.4723828 | D181: 191.2142027 | E181: 46942.17417 | G181: =tblDefAmort[[#This Row],[Payment]]/((1+$J$6)^tblDefAmort[[#This Row],[Month]]) -> 200.9668566
A182: 176 | B182: 328.6865855 | C182: 136.9146747 | D182: 191.7719108 | E182: 46750.40226 | G182: =tblDefAmort[[#This Row],[Payment]]/((1+$J$6)^tblDefAmort[[#This Row],[Month]]) -> 200.4026866
A183: 177 | B183: 328.6865855 | C183: 136.3553399 | D183: 192.3312455 | E183: 46558.07102 | G183: =tblDefAmort[[#This Row],[Payment]]/((1+$J$6)^tblDefAmort[[#This Row],[Month]]) -> 199.8401004
A184: 178 | B184: 328.6865855 | C184: 135.7943738 | D184: 192.8922117 | E184: 46365.1788 | G184: =tblDefAmort[[#This Row],[Payment]]/((1+$J$6)^tblDefAmort[[#This Row],[Month]]) -> 199.2790935
A185: 179 | B185: 328.6865855 | C185: 135.2317715 | D185: 193.454814 | E185: 46171.72399 | G185: =tblDefAmort[[#This Row],[Payment]]/((1+$J$6)^tblDefAmort[[#This Row],[Month]]) -> 198.7196615
A186: 180 | B186: 328.6865855 | C186: 134.6675283 | D186: 194.0190572 | E186: 45977.70493 | G186: =tblDefAmort[[#This Row],[Payment]]/((1+$J$6)^tblDefAmort[[#This Row],[Month]]) -> 198.1618
A187: 181 | B187: 328.6865855 | C187: 134.1016394 | D187: 194.5849461 | E187: 45783.11999 | G187: =tblDefAmort[[#This Row],[Payment]]/((1+$J$6)^tblDefAmort[[#This Row],[Month]]) -> 197.6055046
A188: 182 | B188: 328.6865855 | C188: 133.5341 | D188: 195.1524855 | E188: 45587.9675 | G188: =tblDefAmort[[#This Row],[Payment]]/((1+$J$6)^tblDefAmort[[#This Row],[Month]]) -> 197.0507708
A189: 183 | B189: 328.6865855 | C189: 132.9649052 | D189: 195.7216803 | E189: 45392.24582 | G189: =tblDefAmort[[#This Row],[Payment]]/((1+$J$6)^tblDefAmort[[#This Row],[Month]]) -> 196.4975944
A190: 184 | B190: 328.6865855 | C190: 132.3940503 | D190: 196.2925352 | E190: 45195.95329 | G190: =tblDefAmort[[#This Row],[Payment]]/((1+$J$6)^tblDefAmort[[#This Row],[Month]]) -> 195.9459708
A191: 185 | B191: 328.6865855 | C191: 131.8215304 | D191: 196.8650551 | E191: 44999.08823 | G191: =tblDefAmort[[#This Row],[Payment]]/((1+$J$6)^tblDefAmort[[#This Row],[Month]]) -> 195.3958958
A192: 186 | B192: 328.6865855 | C192: 131.2473407 | D192: 197.4392448 | E192: 44801.64899 | G192: =tblDefAmort[[#This Row],[Payment]]/((1+$J$6)^tblDefAmort[[#This Row],[Month]]) -> 194.8473651
A193: 187 | B193: 328.6865855 | C193: 130.6714762 | D193: 198.0151093 | E193: 44603.63388 | G193: =tblDefAmort[[#This Row],[Payment]]/((1+$J$6)^tblDefAmort[[#This Row],[Month]]) -> 194.3003742
A194: 188 | B194: 328.6865855 | C194: 130.0939321 | D194: 198.5926533 | E194: 44405.04122 | G194: =tblDefAmort[[#This Row],[Payment]]/((1+$J$6)^tblDefAmort[[#This Row],[Month]]) -> 193.7549188
A195: 189 | B195: 328.6865855 | C195: 129.5147036 | D195: 199.1718819 | E195: 44205.86934 | G195: =tblDefAmort[[#This Row],[Payment]]/((1+$J$6)^tblDefAmort[[#This Row],[Month]]) -> 193.2109948
A196: 190 | B196: 328.6865855 | C196: 128.9337856 | D196: 199.7527999 | E196: 44006.11654 | G196: =tblDefAmort[[#This Row],[Payment]]/((1+$J$6)^tblDefAmort[[#This Row],[Month]]) -> 192.6685976
A197: 191 | B197: 328.6865855 | C197: 128.3511732 | D197: 200.3354122 | E197: 43805.78113 | G197: =tblDefAmort[[#This Row],[Payment]]/((1+$J$6)^tblDefAmort[[#This Row],[Month]]) -> 192.1277231
A198: 192 | B198: 328.6865855 | C198: 127.7668616 | D198: 200.9197239 | E198: 43604.86141 | G198: =tblDefAmort[[#This Row],[Payment]]/((1+$J$6)^tblDefAmort[[#This Row],[Month]]) -> 191.588367
A199: 193 | B199: 328.6865855 | C199: 127.1808458 | D199: 201.5057397 | E199: 43403.35567 | G199: =tblDefAmort[[#This Row],[Payment]]/((1+$J$6)^tblDefAmort[[#This Row],[Month]]) -> 191.0505251
A200: 194 | B200: 328.6865855 | C200: 126.5931207 | D200: 202.0934648 | E200: 43201.2622 | G200: =tblDefAmort[[#This Row],[Payment]]/((1+$J$6)^tblDefAmort[[#This Row],[Month]]) -> 190.514193
A201: 195 | B201: 328.6865855 | C201: 126.0036814 | D201: 202.6829041 | E201: 42998.5793 | G201: =tblDefAmort[[#This Row],[Payment]]/((1+$J$6)^tblDefAmort[[#This Row],[Month]]) -> 189.9793665
A202: 196 | B202: 328.6865855 | C202: 125.412523 | D202: 203.2740625 | E202: 42795.30524 | G202: =tblDefAmort[[#This Row],[Payment]]/((1+$J$6)^tblDefAmort[[#This Row],[Month]]) -> 189.4460414
A203: 197 | B203: 328.6865855 | C203: 124.8196403 | D203: 203.8669452 | E203: 42591.43829 | G203: =tblDefAmort[[#This Row],[Payment]]/((1+$J$6)^tblDefAmort[[#This Row],[Month]]) -> 188.9142136
... 164 more rows
